fUSD/lending_fUSD_20250804
["ID","MTS","AMOUNT","RATE_DAILY","PERIOD"]
[377183202,1754268714652,-689.05,0.00050684,120]
[377183203,1754268714661,-400.0,0.00050684,120]
[377183204,1754268714670,-1436.9,0.00050684,120]
[377183205,1754268714679,-1022.67,0.00050684,120]
[377183206,1754268714689,-462.19,0.00050684,120]
[377183207,1754268714699,-400.0,0.00050684,120]
[377183208,1754268714708,-400.0,0.00050684,120]
[377183209,1754268714717,-1537.44,0.00050684,120]
[377183210,1754268714727,-841.11,0.00050684,120]
[377183211,1754268714735,-400.0,0.00050684,120]
[377183212,1754268714744,-400.0,0.00050684,120]
[377183213,1754268714753,-664.01,0.00050684,120]
[377183214,1754268714763,-400.0,0.00050684,120]
[377183215,1754268714773,-452.74,0.00050684,120]
[377183216,1754268714782,-1114.01,0.00050684,120]
[377183217,1754268714791,-891.04,0.00050684,120]
[377183218,1754268714800,-771.0,0.00050684,120]
[377183219,1754268714809,-293.34409101,0.00050684,120]
[377183220,1754268714818,-400.0,0.00050684,120]
[377183221,1754268714827,-472.94306694,0.00050684,120]
[377183222,1754268714836,-1272.49,0.00050684,120]
[377183223,1754268714846,-458.09,0.00050684,120]
[377183224,1754268714855,-400.0,0.00050684,120]
[377183225,1754268714864,-1179.25,0.00050684,120]
[377183226,1754268714873,-484.25,0.00050684,60]
[377183227,1754268714882,-400.0,0.00050684,120]
[377183228,1754268714891,-414.36,0.00050684,120]
[377183229,1754268714900,-400.0,0.00050684,120]
[377183230,1754268714910,-400.0,0.00050684,120]
[377183231,1754268714919,-400.0,0.00050684,120]
[377183232,1754268714928,-400.0,0.00050684,120]
[377183233,1754268714938,-726.76,0.00050684,120]
[377183234,1754268714947,-908.23,0.00050684,120]
[377183235,1754268714956,-879.77,0.00050684,120]
[377183236,1754268714966,-1411.22,0.00050684,120]
[377183237,1754268714976,-619.25,0.00050684,120]
[377183238,1754268714985,-400.0,0.00050684,120]
[377183239,1754268714995,-250.85382261,0.00050684,120]
[377183240,1754268715004,-2247.490381,0.00050684,120]
[377183241,1754268715014,-400.0,0.00050684,120]
[377183242,1754268715024,-400.0,0.00050684,120]
[377183243,1754268715033,-559.47,0.00050684,120]
[377183244,1754268715042,-400.0,0.00050684,120]
[377183245,1754268715052,-400.0,0.00050684,120]
[377183246,1754268715061,-1917.81123,0.00050684,120]
[377183247,1754268715070,-609.62,0.00050684,120]
[377183248,1754268715080,-2057.412942,0.00050684,120]
[377183249,1754268715089,-400.0,0.00050684,120]
[377183250,1754268715099,-400.0,0.00050684,120]
[377183251,1754268715108,-400.0,0.00050684,120]
[377183252,1754268715118,-647.79,0.00050684,120]
[377183253,1754268715128,-400.0,0.00050684,120]
[377183254,1754268715137,-400.0,0.00050684,120]
[377183255,1754268715147,-642.74,0.00050684,120]
[377183256,1754268715157,-157.054446,0.00050684,120]
[377183257,1754268715166,-400.0,0.00050684,120]
[377183258,1754268715176,-400.0,0.00050684,120]
[377183259,1754268715186,-461.68,0.00050684,120]
[377183260,1754268715195,-637.63,0.00050684,120]
[377183261,1754268715204,-1766.94,0.00050684,120]
[377183262,1754268715214,-400.0,0.00050684,120]
[377183263,1754268715223,-400.0,0.00050684,120]
[377183264,1754268715233,-534.68836094,0.00050684,120]
[377183265,1754268715242,-400.0,0.00050684,120]
[377183266,1754268715251,-937.13,0.00050684,120]
[377183267,1754268715261,-400.0,0.00050684,120]
[377183268,1754268715270,-1018.9,0.00050684,120]
[377183269,1754268715279,-400.0,0.00050684,120]
[377183270,1754268715288,-400.0,0.00050684,120]
[377183271,1754268715297,-1452.21,0.00050684,120]
[377183272,1754268715307,-682.6,0.00050684,120]
[377183273,1754268715316,-688.82,0.00050684,120]
[377183274,1754268715325,-400.0,0.00050684,120]
[377183275,1754268715334,-400.0,0.00050684,120]
[377183276,1754268715344,-400.0,0.00050684,120]
[377183277,1754268715353,-400.0,0.00050684,120]
[377183278,1754268715362,-384.82380718,0.00050684,120]
[377183279,1754268715372,-153.031442,0.00050684,120]
[377183280,1754268715382,-970.46,0.00050684,120]
[377183281,1754268715391,-400.0,0.00050684,120]
[377183282,1754268715401,-400.0,0.00050684,120]
[377183283,1754268715620,-1380.71,0.00050684,120]
[377183284,1754268715630,-535.75,0.00050684,120]
[377183285,1754268715640,-777.09,0.00050684,120]
[377183286,1754268715650,-400.0,0.00050684,120]
[377183287,1754268715659,-821.49,0.00050684,120]
[377183288,1754268715669,-1683.71,0.00050684,120]
[377183289,1754268715679,-400.0,0.00050684,120]
[377183290,1754268715690,-400.0,0.00050684,120]
[377183291,1754268715701,-160.069358,0.00050684,120]
[377183292,1754268715710,-400.0,0.00050684,120]
[377183293,1754268715719,-400.0,0.00050684,120]
[377183294,1754268715729,-287.4050461,0.00050684,120]
[377183295,1754268715739,-400.0,0.00050684,120]
[377183296,1754268715749,-441.1,0.00050684,120]
[377183297,1754268715758,-239.14403401,0.00050684,120]
[377183298,1754268715769,-400.0,0.00050684,120]
[377183299,1754268715778,-940.26,0.00050684,120]
[377183300,1754268715787,-1587.13,0.00050684,120]
[377183301,1754268715797,-400.0,0.00050684,120]
[377183302,1754268715806,-716.15,0.00050684,120]
[377183303,1754268715815,-400.0,0.00050684,120]
[377183304,1754268715824,-400.0,0.00050684,120]
[377183305,1754268715834,-400.0,0.00050684,120]
[377183306,1754268715843,-1505.99,0.00050684,120]
[377183307,1754268715853,-1532.73,0.00050684,120]
[377183308,1754268715861,-1445.81,0.00050684,120]
[377183309,1754268715871,-400.0,0.00050684,120]
[377183310,1754268715881,-486.46720554,0.00050684,120]
[377183311,1754268715890,-400.0,0.00050684,120]
[377183312,1754268715899,-400.0,0.00050684,120]
[377183313,1754268715909,-400.0,0.00050684,120]
[377183314,1754268715919,-475.81,0.00050684,120]
[377183315,1754268715929,-500.0,0.00050684,120]
[377183316,1754268715939,-811.21,0.00050684,120]
[377183317,1754268715949,-779.09,0.00050684,120]
[377183318,1754268715959,-628.6,0.00050684,120]
[377183319,1754268715968,-400.0,0.00050684,120]
[377183320,1754268715977,-583.94,0.00050684,120]
[377183321,1754268715987,-400.0,0.00050684,120]
[377183322,1754268715996,-1655.42,0.00050684,120]
[377183323,1754268716006,-400.0,0.00050684,120]
[377183324,1754268716015,-400.0,0.00050684,120]
[377183325,1754268716024,-400.0,0.00050684,120]
[377183326,1754268716033,-519.83,0.00050684,120]
[377183327,1754268716044,-400.0,0.00050684,120]
[377183328,1754268716053,-738.64,0.00050684,120]
[377183329,1754268716063,-400.0,0.00050684,120]
[377183330,1754268716072,-400.0,0.00050684,120]
[377183331,1754268716081,-1676.12,0.00050684,120]
[377183332,1754268716091,-411.26138449,0.00050684,120]
[377183333,1754268716100,-287.52594686,0.00050684,120]
[377183334,1754268716109,-400.0,0.00050684,120]
[377183335,1754268716119,-260.81908181,0.00050684,120]
[377183336,1754268716128,-907.07,0.00050684,120]
[377183337,1754268716137,-400.0,0.00050684,120]
[377183338,1754268716147,-400.0,0.00050684,120]
[377183339,1754268716156,-909.63,0.00050684,120]
[377183340,1754268716167,-1111.36,0.00050684,120]
[377183341,1754268716176,-258.01556807,0.00050684,120]
[377183342,1754268716186,-400.0,0.00050684,120]
[377183343,1754268716195,-673.74,0.00050684,120]
[377183344,1754268716204,-483.68,0.00050684,120]
[377183345,1754268716213,-864.65,0.00050684,60]
[377183346,1754268716223,-400.0,0.00050684,120]
[377183347,1754268716232,-400.0,0.00050684,120]
[377183348,1754268716241,-1503.61,0.00050684,120]
[377183349,1754268716250,-400.0,0.00050684,120]
[377183350,1754268716259,-400.0,0.00050684,120]
[377183351,1754268716269,-400.0,0.00050684,120]
[377183352,1754268716279,-400.0,0.00050684,120]
[377183353,1754268716287,-415.28,0.00050684,120]
[377183354,1754268716297,-434.63,0.00050684,120]
[377183355,1754268716306,-400.0,0.00050684,120]
[377183356,1754268716315,-478.68,0.00050684,120]
[377183357,1754268716324,-400.0,0.00050684,120]
[377183358,1754268716334,-762.05,0.00050684,120]
[377183359,1754268716343,-156.381423,0.00050684,120]
[377183360,1754268716353,-400.0,0.00050684,120]
[377183361,1754268716362,-400.0,0.00050684,120]
[377183362,1754268716372,-400.0,0.00050684,120]
[377183363,1754268716382,-400.0,0.00050684,120]
[377183364,1754268716391,-541.97242586,0.00050684,120]
[377183365,1754268716401,-867.68,0.00050684,120]
[377183366,1754268716410,-400.0,0.00050684,120]
[377183367,1754268716419,-400.0,0.00050684,120]
[377183368,1754268716429,-1529.64,0.00050684,120]
[377183369,1754268716438,-1514.52,0.00050684,120]
[377183370,1754268716447,-888.99,0.00050684,120]
[377183371,1754268716456,-372.22442167,0.00050684,120]
[377183372,1754268716465,-400.0,0.00050684,120]
[377183373,1754268716474,-400.0,0.00050684,120]
[377183374,1754268716484,-1572.71,0.00050684,120]
[377183375,1754268716493,-400.0,0.00050684,120]
[377183376,1754268716502,-400.0,0.00050684,120]
[377183377,1754268716511,-667.29,0.00050684,120]
[377183378,1754268716521,-400.0,0.00050684,120]
[377183379,1754268716530,-400.0,0.00050684,120]
[377183380,1754268716539,-407.35106521,0.00050684,120]
[377183381,1754268716548,-400.0,0.00050684,120]
[377183382,1754268716558,-560.16,0.00050684,120]
[377183383,1754268716567,-974.46,0.00050684,120]
[377183384,1754268716576,-4405.19,0.00050684,120]
[377183385,1754268716585,-847.66,0.00050684,120]
[377183386,1754268716594,-400.0,0.00050684,120]
[377183387,1754268716604,-1044.37,0.00050684,120]
[377183388,1754268716613,-1027.62,0.00050684,120]
[377183389,1754268716624,-400.0,0.00050684,120]
[377183390,1754268716633,-400.0,0.00050684,120]
[377183391,1754268716642,-400.0,0.00050684,120]
[377183392,1754268716652,-400.0,0.00050684,120]
[377183393,1754268716662,-400.0,0.00050684,120]
[377183394,1754268716672,-411.34,0.00050684,120]
[377183395,1754268716682,-773.44,0.00050684,120]
[377183396,1754268716694,-1164.51,0.00050684,120]
[377183397,1754268716704,-400.0,0.00050684,120]
[377183398,1754268716713,-952.78,0.00050684,120]
[377183399,1754268716723,-400.0,0.00050684,120]
[377183400,1754268716732,-226.91668662,0.00050684,120]
[377183401,1754268716742,-400.0,0.00050684,120]
[377183402,1754268716752,-400.0,0.00050684,120]
[377183403,1754268716762,-681.3,0.00050684,120]
[377183404,1754268716772,-400.0,0.00050684,120]
[377183405,1754268716782,-1226.55,0.00050684,120]
[377183406,1754268716791,-1342.41,0.00050684,30]
[377183407,1754268716801,-400.0,0.00050684,120]
[377183408,1754268716810,-400.0,0.00050684,120]
[377183409,1754268716820,-1018.3,0.00050684,120]
[377183410,1754268716829,-400.0,0.00050684,120]
[377183411,1754268716839,-400.0,0.00050684,120]
[377183412,1754268716847,-400.0,0.00050684,120]
[377183413,1754268716858,-593.66,0.00050684,120]
[377183414,1754268716867,-621.0,0.00050684,120]
[377183415,1754268716876,-1037.22,0.00050684,120]
[377183416,1754268716886,-613.4,0.00050684,120]
[377183417,1754268716895,-400.0,0.00050684,120]
[377183418,1754268716905,-400.0,0.00050684,120]
[377183419,1754268716916,-665.48,0.00050684,120]
[377183420,1754268716926,-1384.85,0.00050684,120]
[377183421,1754268716937,-512.74,0.00050684,120]
[377183422,1754268716947,-400.0,0.00050684,120]
[377183423,1754268716956,-400.0,0.00050684,120]
[377183424,1754268716966,-400.0,0.00050684,120]
[377183425,1754268716976,-400.0,0.00050684,120]
[377183426,1754268716985,-1250.2,0.00050684,120]
[377183427,1754268717006,-400.0,0.00050684,120]
[377183428,1754268717015,-400.0,0.00050684,120]
[377183429,1754268717026,-1796.88,0.00050684,120]
[377183430,1754268717035,-754.08,0.00050684,120]
[377183431,1754268717065,-400.0,0.00050684,120]
[377183432,1754268717086,-851.82,0.00050684,120]
[377183433,1754268717109,-533.01,0.00050684,120]
[377183434,1754268717133,-530.85,0.00050684,120]
[377183435,1754268717151,-400.0,0.00050684,120]
[377183436,1754268717173,-400.0,0.00050684,120]
[377183437,1754268717193,-668.86,0.00050684,120]
[377183438,1754268717214,-1655.2,0.00050684,120]
[377183439,1754268717233,-400.0,0.00050684,120]
[377183440,1754268717254,-400.0,0.00050684,120]
[377183441,1754268717275,-180.0,0.00050684,120]
[377183442,1754268717290,-427.9,0.00050684,120]
[377183443,1754268717307,-414.02,0.00050684,120]
[377183444,1754268717323,-928.38,0.00050684,120]
[377183445,1754268717341,-400.0,0.00050684,120]
[377183446,1754268717361,-400.0,0.00050684,120]
[377183447,1754268717380,-400.0,0.00050684,120]
[377183448,1754268717399,-400.0,0.00050684,120]
[377183449,1754268717417,-400.0,0.00050684,120]
[377183450,1754268717435,-400.0,0.00050684,120]
[377183451,1754268717452,-400.0,0.00050684,120]
[377183452,1754268717469,-1098.74,0.00050684,120]
[377183453,1754268717486,-749.65,0.00050684,120]
[377183454,1754268717503,-1053.29,0.00050684,120]
[377183455,1754268717520,-400.0,0.00050684,120]
[377183456,1754268717536,-400.0,0.00050684,120]
[377183457,1754268717552,-778.27,0.00050684,120]
[377183458,1754268717569,-483.76237678,0.00050684,120]
[377183459,1754268717586,-901.5,0.00050684,120]
[377183460,1754268717602,-820.28,0.00050684,120]
[377183461,1754268717620,-400.0,0.00050684,120]
[377183462,1754268717636,-400.0,0.00050684,120]
[377183463,1754268717652,-400.0,0.00050684,120]
[377183464,1754268717667,-400.0,0.00050684,120]
[377183465,1754268717685,-400.0,0.00050684,120]
[377183466,1754268717703,-168.395824,0.00050684,120]
[377183467,1754268717720,-400.0,0.00050684,120]
[377183468,1754268717739,-813.08,0.00050684,120]
[377183469,1754268717757,-494.87,0.00050684,120]
[377183470,1754268717775,-1446.37,0.00050684,120]
[377183471,1754268717791,-533.79,0.00050684,120]
[377183472,1754268717807,-400.0,0.00050684,120]
[377183473,1754268717823,-355.88581099,0.00050684,120]
[377183474,1754268717839,-168.395824,0.00050684,120]
[377183475,1754268717855,-462.1526416,0.00050684,120]
[377183476,1754268717871,-225.704179,0.00050684,120]
[377183477,1754268717888,-629.0,0.00050684,120]
[377183478,1754268717904,-639.97,0.00050684,120]
[377183479,1754268717920,-993.99,0.00050684,120]
[377183480,1754268717936,-225.704179,0.00050684,120]
[377183481,1754268717951,-720.19,0.00050684,120]
[377183482,1754268717967,-667.87,0.00050684,60]
[377183483,1754268717984,-348.55727217,0.00050684,120]
[377183484,1754268718000,-460.0,0.00050684,120]
[377183485,1754268718016,-400.0,0.00050684,120]
[377183486,1754268718032,-400.0,0.00050684,120]
[377183487,1754268718047,-1042.81,0.00050684,120]
[377183488,1754268718064,-1607.03,0.00050684,120]
[377183489,1754268718079,-400.0,0.00050684,120]
[377183490,1754268718094,-151.0,0.00050684,120]
[377183491,1754268718111,-400.0,0.00050684,120]
[377183492,1754268718128,-382.55446313,0.00050684,120]
[377183493,1754268718145,-693.25,0.00050684,120]
[377183494,1754268718160,-791.76,0.00050684,120]
[377183495,1754268718179,-400.0,0.00050684,120]
[377183496,1754268718200,-902.83,0.00050684,120]
[377183498,1754268718217,-400.0,0.00050684,120]
[377183499,1754268718233,-223.149411,0.00050684,120]
[377183500,1754268718249,-400.0,0.00050684,120]
[377183501,1754268718267,-223.149411,0.00050684,120]
[377183502,1754268718282,-400.0,0.00050684,120]
[377183503,1754268718298,-562.43,0.00050684,120]
[377183504,1754268718313,-715.25,0.00050684,120]
[377183505,1754268718329,-1235.78,0.00050684,120]
[377183506,1754268718344,-400.0,0.00050684,120]
[377183507,1754268718359,-418.35,0.00050684,120]
[377183508,1754268718377,-882.13,0.00050684,120]
[377183509,1754268718392,-400.0,0.00050684,120]
[377183510,1754268718406,-400.0,0.00050684,120]
[377183511,1754268718422,-400.0,0.00050684,120]
[377183512,1754268718437,-400.0,0.00050684,120]
[377183513,1754268718453,-426.62,0.00050684,120]
[377183514,1754268718466,-400.0,0.00050684,120]
[377183515,1754268718482,-400.0,0.00050684,120]
[377183516,1754268718497,-1619.25,0.00050684,120]
[377183517,1754268718512,-400.0,0.00050684,120]
[377183518,1754268718527,-1436.52,0.00050684,120]
[377183519,1754268718542,-835.63,0.00050684,120]
[377183520,1754268718557,-400.0,0.00050684,120]
[377183521,1754268718572,-400.0,0.00050684,120]
[377183522,1754268718586,-227.21014948,0.00050684,120]
[377183523,1754268718602,-894.51,0.00050684,120]
[377183524,1754268718617,-621.2,0.00050684,120]
[377183525,1754268718633,-1018.59,0.00050684,120]
[377183526,1754268718648,-1373.98,0.00050684,120]
[377183527,1754268718664,-456.11,0.00050684,120]
[377183528,1754268718678,-151.0,0.00050684,120]
[377183529,1754268718696,-881.26,0.00050684,120]
[377183530,1754268718718,-1531.36,0.00050684,120]
[377183531,1754268718733,-853.22,0.00050684,120]
[377183532,1754268718748,-1010.93,0.00050684,120]
[377183533,1754268718763,-400.0,0.00050684,120]
[377183534,1754268718778,-652.92,0.00050684,120]
[377183535,1754268718792,-1008.77,0.00050684,120]
[377183536,1754268718809,-447.52,0.00050684,120]
[377183537,1754268718824,-169.30766777,0.00050684,120]
[377183538,1754268718839,-400.0,0.00050684,120]
[377183539,1754268718854,-310.08,0.00050684,120]
[377183540,1754268718872,-1051.17,0.00050684,120]
[377183541,1754268718888,-400.0,0.00050684,120]
[377183542,1754268718904,-1093.28,0.00050684,120]
[377183543,1754268718920,-400.0,0.00050684,120]
[377183544,1754268718937,-1544.86,0.00050684,120]
[377183545,1754268718953,-702.82,0.00050684,120]
[377183546,1754268718969,-544.8,0.00050684,120]
[377183547,1754268718986,-400.0,0.00050684,120]
[377183548,1754268719002,-400.0,0.00050684,120]
[377183549,1754268719019,-552.48,0.00050684,120]
[377183550,1754268719035,-400.0,0.00050684,120]
[377183551,1754268719052,-400.0,0.00050684,120]
[377183552,1754268719068,-1553.31,0.00050684,120]
[377183553,1754268719084,-1124.67,0.00050684,120]
[377183554,1754268719100,-400.0,0.00050684,120]
[377183555,1754268719115,-400.0,0.00050684,120]
[377183556,1754268719136,-798.23,0.00050684,120]
[377183557,1754268719152,-400.0,0.00050684,120]
[377183558,1754268719168,-608.06,0.00050684,120]
[377183559,1754268719185,-1527.9,0.00050684,120]
[377183560,1754268719202,-400.0,0.00050684,120]
[377183561,1754268719221,-400.0,0.00050684,120]
[377183562,1754268719237,-947.85,0.00050684,120]
[377183563,1754268719253,-981.29,0.00050684,120]
[377183564,1754268719268,-400.0,0.00050684,120]
[377183565,1754268719284,-400.0,0.00050684,120]
[377183566,1754268719299,-987.27,0.00050684,120]
[377183567,1754268719318,-400.0,0.00050684,120]
[377183568,1754268719333,-520.59,0.00050684,120]
[377183569,1754268719348,-749.39,0.00050684,120]
[377183570,1754268719363,-400.0,0.00050684,120]
[377183571,1754268719384,-977.04,0.00050684,120]
[377183572,1754268719401,-1111.61,0.00050684,120]
[377183573,1754268719415,-400.0,0.00050684,120]
[377183574,1754268719431,-400.0,0.00050684,120]
[377183575,1754268719446,-400.0,0.00050684,120]
[377183576,1754268719461,-400.0,0.00050684,120]
[377183577,1754268719477,-858.32,0.00050684,120]
[377183578,1754268719492,-400.0,0.00050684,120]
[377183579,1754268719790,-400.0,0.00050684,120]
[377183580,1754268719831,-524.03,0.00050684,120]
[377183581,1754268719840,-528.60553484,0.00050684,120]
[377183582,1754268719851,-400.0,0.00050684,120]
[377183583,1754268719860,-400.0,0.00050684,120]
[377183584,1754268719872,-1637.94,0.00050684,120]
[377183585,1754268719882,-637.78,0.00050684,120]
[377183586,1754268719892,-400.0,0.00050684,120]
[377183587,1754268719902,-1658.43,0.00050684,120]
[377183588,1754268719912,-400.0,0.00050684,120]
[377183589,1754268719922,-400.0,0.00050684,120]
[377183590,1754268719931,-400.0,0.00050684,120]
[377183591,1754268719940,-483.41,0.00050684,120]
[377183592,1754268719950,-598.15,0.00050684,120]
[377183593,1754268719960,-151.0,0.00050684,120]
[377183594,1754268719969,-4463.09,0.00050684,120]
[377183595,1754268719979,-400.0,0.00050684,120]
[377183596,1754268719989,-400.0,0.00050684,120]
[377183597,1754268719998,-1021.73,0.00050684,120]
[377183598,1754268720008,-400.0,0.00050684,120]
[377183599,1754268720018,-400.0,0.00050684,120]
[377183600,1754268720029,-754.89,0.00050684,120]
[377183601,1754268720039,-400.0,0.00050684,120]
[377183602,1754268720049,-588.48,0.00050684,120]
[377183603,1754268720059,-2668.08,0.00050684,120]
[377183604,1754268720069,-1209.71,0.00050684,120]
[377183605,1754268720080,-1584.6,0.00050684,120]
[377183606,1754268720089,-400.0,0.00050684,120]
[377183607,1754268720099,-400.0,0.00050684,120]
[377183608,1754268720108,-1362.53,0.00050684,120]
[377183609,1754268720118,-1522.49,0.00050684,120]
[377183610,1754268720128,-400.0,0.00050684,120]
[377183611,1754268720138,-647.61,0.00050684,120]
[377183612,1754268720148,-801.6,0.00050684,120]
[377183613,1754268720157,-1682.47,0.00050684,120]
[377183614,1754268720167,-400.0,0.00050684,120]
[377183615,1754268720176,-2375.94,0.00050684,120]
[377183616,1754268720187,-856.16,0.00050684,120]
[377183617,1754268720197,-1262.21,0.00050684,120]
[377183618,1754268720206,-1150.07,0.00050684,120]
[377183619,1754268720216,-400.0,0.00050684,120]
[377183620,1754268720226,-1014.08,0.00050684,120]
[377183621,1754268720235,-400.0,0.00050684,120]
[377183622,1754268720245,-604.67,0.00050684,120]
[377183623,1754268720254,-400.0,0.00050684,120]
[377183624,1754268720264,-776.57,0.00050684,120]
[377183625,1754268720274,-496.71,0.00050684,120]
[377183626,1754268720284,-400.0,0.00050684,120]
[377183627,1754268720294,-346.69753627,0.00050684,120]
[377183628,1754268720304,-633.78,0.00050684,120]
[377183629,1754268720314,-400.0,0.00050684,120]
[377183630,1754268720323,-3407.72,0.00050684,120]
[377183631,1754268720333,-1700.65,0.00050684,120]
[377183632,1754268720343,-860.5,0.00050684,120]
[377183633,1754268720352,-400.0,0.00050684,120]
[377183634,1754268720363,-400.0,0.00050684,120]
[377183635,1754268720375,-400.0,0.00050684,120]
[377183636,1754268720385,-400.0,0.00050684,120]
[377183637,1754268720395,-5122.26,0.00050684,118]
[377183638,1754268720405,-400.0,0.00050684,120]
[377183639,1754268720415,-400.0,0.00050684,120]
[377183640,1754268720425,-400.0,0.00050684,120]
[377183641,1754268720435,-400.0,0.00050684,120]
[377183642,1754268720445,-220.66201917,0.00050684,120]
[377183643,1754268720455,-400.0,0.00050684,120]
[377183644,1754268720465,-400.0,0.00050684,120]
[377183645,1754268720474,-400.0,0.00050684,120]
[377183646,1754268720484,-400.0,0.00050684,120]
[377183647,1754268720494,-400.0,0.00050684,120]
[377183648,1754268720503,-400.0,0.00050684,120]
[377183649,1754268720512,-400.0,0.00050684,120]
[377183650,1754268720522,-2275.99,0.00050684,120]
[377183651,1754268720531,-400.0,0.00050684,120]
[377183652,1754268720541,-400.0,0.00050684,120]
[377183653,1754268720550,-400.0,0.00050684,120]
[377183654,1754268720560,-400.0,0.00050684,120]
[377183655,1754268720569,-747.61,0.00050684,120]
[377183656,1754268720578,-6663.96,0.00050684,120]
[377183657,1754268720587,-400.0,0.00050684,120]
[377183658,1754268720597,-295.245203,0.00050684,120]
[377183659,1754268720606,-504.1,0.00050684,120]
[377183660,1754268720615,-151.0,0.00050684,120]
[377183661,1754268720626,-400.0,0.00050684,120]
[377183662,1754268720635,-400.0,0.00050684,120]
[377183663,1754268720646,-422.64,0.00050684,120]
[377183664,1754268720655,-400.0,0.00050684,120]
[377183665,1754268720665,-295.245203,0.00050684,120]
[377183666,1754268720674,-151.0,0.00050684,120]
[377183667,1754268720683,-759.38,0.00050684,120]
[377183668,1754268720696,-400.0,0.00050684,120]
[377183669,1754268720705,-400.0,0.00050684,120]
[377183670,1754268720715,-1263.16,0.00050684,120]
[377183671,1754268720724,-1400.47,0.00050684,120]
[377183672,1754268720734,-1244.75,0.00050684,120]
[377183673,1754268720743,-965.49,0.00050684,120]
[377183674,1754268720752,-1286.36,0.00050684,120]
[377183675,1754268720761,-400.0,0.00050684,120]
[377183676,1754268720771,-400.0,0.00050684,120]
[377183677,1754268720781,-151.0,0.00050684,120]
[377183678,1754268720790,-911.39,0.00050684,120]
[377183679,1754268720799,-400.0,0.00050684,120]
[377183680,1754268720808,-151.0,0.00050684,120]
[377183681,1754268720818,-151.0,0.00050684,120]
[377183682,1754268720827,-400.0,0.00050684,120]
[377183683,1754268720837,-942.83,0.00050684,120]
[377183684,1754268720847,-400.0,0.00050684,120]
[377183685,1754268720857,-89208.25,0.00050684,120]
[377183686,1754268720866,-151.0,0.00050684,120]
[377183687,1754268720879,-842.57,0.00050684,120]
[377183688,1754268720889,-400.0,0.00050684,120]
[377183689,1754268720899,-264.72019751,0.00050684,120]
[377183690,1754268720909,-400.0,0.00050684,120]
[377183691,1754268720919,-852.42,0.00050684,120]
[377183692,1754268720929,-1359.66,0.00050684,120]
[377183693,1754268720939,-400.0,0.00050684,120]
[377183694,1754268720949,-400.0,0.00050684,120]
[377183695,1754268720958,-899.08,0.00050684,120]
[377183696,1754268720968,-1253.81,0.00050684,120]
[377183697,1754268720977,-1413.4,0.00050684,120]
[377183698,1754268720987,-400.0,0.00050684,120]
[377183699,1754268720996,-400.0,0.00050684,120]
[377183700,1754268721006,-643.48,0.00050684,120]
[377183701,1754268721016,-469.57,0.00050684,120]
[377183702,1754268721025,-400.0,0.00050684,120]